fUST/lending_fUST_20260307
["ID","MTS","AMOUNT","RATE_DAILY","PERIOD"]
[407889720,1772898643303,-394.86,5.5e-05,2]
[407889721,1772898643312,-394.86,5.5e-05,2]
[407889722,1772898643322,-394.86,5.5e-05,2]
[407889723,1772898643331,-394.86,5.5e-05,2]
[407889724,1772898643340,-394.86,5.5e-05,2]
[407889725,1772898643349,-159.64,5.5e-05,2]
[407889726,1772898643358,-375.39,5.5e-05,2]
[407889727,1772898643367,-375.39,5.5e-05,2]
[407889728,1772898643376,-375.39,5.5e-05,2]
[407889729,1772898643385,-375.39,5.5e-05,2]
[407889730,1772898643394,-375.39,5.5e-05,2]
[407889731,1772898643403,-175.81,5.5e-05,2]
[407889732,1772898643412,-1000.0,5.565e-05,2]
[407889733,1772898643421,-2000.0,5.716e-05,2]
[407889734,1772898643430,-500.0,5.755e-05,2]
[407889735,1772898643440,-2500.0,5.964e-05,2]
[407889736,1772898643449,-2500.0,5.964e-05,2]
[407889737,1772898643458,-500.0,6.058e-05,2]
[407889738,1772898643467,-1000.0,6.121e-05,2]
[407889739,1772898643476,-244.0,6.121e-05,2]
[407889740,1772898643486,-2500.0,6.264e-05,2]
[407889741,1772898643495,-500.0,6.377e-05,2]
[407889742,1772898643505,-3000.0,6.512e-05,2]
[407889743,1772898643514,-3000.0,6.512e-05,2]
[407889744,1772898643523,-500.0,6.6e-05,2]
[407889745,1772898643532,-500.0,6.6e-05,2]
[407889746,1772898643542,-500.0,6.6e-05,2]
[407889747,1772898643551,-500.0,6.6e-05,2]
[407889748,1772898643560,-500.0,6.6e-05,2]
[407889749,1772898643569,-500.0,6.6e-05,2]
[407889750,1772898643579,-503.9283665,6.6e-05,2]
[407889751,1772898643588,-500.0,6.6e-05,2]
[407889752,1772898643597,-500.0,6.6e-05,2]
[407889753,1772898643607,-500.0,6.6e-05,2]
[407889754,1772898643616,-500.0,6.6e-05,2]
[407889755,1772898643874,-500.0,6.6e-05,2]
[407889756,1772898643883,-511.31234387,6.6e-05,2]
[407889757,1772898643893,-500.0,6.713e-05,2]
[407889758,1772898643902,-12758.92621962,6.719e-05,3]
[407889759,1772898643912,-1000.0,6.734e-05,2]
[407889760,1772898643921,-492.0,6.734e-05,2]
[407889761,1772898643930,-742.99344664,6.812e-05,2]
[407889762,1772898643940,-300.0,6.849e-05,2]
[407889763,1772898643949,-449.60247167,6.904e-05,2]
[407889764,1772898643958,-1004.0,6.99e-05,2]
[407889765,1772898643967,-6184.5147083,7.011e-05,2]
[407889766,1772898643977,-500.0,7.048e-05,2]
[407889767,1772898643986,-3500.0,7.06e-05,2]
[407889768,1772898643995,-3500.0,7.06e-05,2]
[407889769,1772898644005,-637.93486631,7.151e-05,2]
[407889770,1772898644014,-637.93486631,7.205e-05,2]
[407889771,1772898644023,-637.93486631,7.233e-05,2]
[407889772,1772898644035,-637.93486631,7.26e-05,2]
[407889773,1772898644044,-637.93486631,7.288e-05,2]
[407889774,1772898644054,-637.93486631,7.342e-05,2]
[407889775,1772898644063,-637.93486631,7.37e-05,2]
[407889776,1772898644072,-637.93486631,7.397e-05,2]
[407889777,1772898644083,-600.0,7.397e-05,2]
[407889778,1772898644093,-500.0,7.401e-05,2]
[407889779,1772898644104,-1000.0,7.407e-05,2]
[407889780,1772898644113,-791.0,7.407e-05,2]
[407889781,1772898644123,-637.93486631,7.425e-05,2]
[407889782,1772898644132,-637.93486631,7.479e-05,2]
[407889783,1772898644141,-637.93486631,7.507e-05,2]
[407889784,1772898644151,-637.93486631,7.534e-05,2]
[407889785,1772898644160,-3007.58271217,7.608e-05,2]
[407889786,1772898644169,-4000.0,7.608e-05,2]
[407889787,1772898644179,-500.0,7.771e-05,2]
[407889788,1772898644187,-900.0,7.945e-05,2]
[407889789,1772898644197,-1004.0,7.99e-05,2]
[407889790,1772898644207,-1000.0,8.148e-05,2]
[407889791,1772898644216,-1000.0,8.148e-05,2]
[407889792,1772898644226,-1725.42936139,8.156e-05,2]
[407889793,1772898644236,-500.0,8.159e-05,2]
[407889794,1772898644245,-500.0,8.219e-05,2]
[407889795,1772898644255,-500.0,8.219e-05,2]
[407889796,1772898644264,-770.0,8.219e-05,2]
[407889797,1772898644273,-500.0,8.219e-05,2]
[407889798,1772898644282,-500.0,8.219e-05,2]
[407889799,1772898644291,-500.0,8.219e-05,2]
[407889800,1772898644301,-238.3719795,8.219e-05,2]
[407889801,1772898644310,-287.84449644,8.219e-05,2]
[407889802,1772898644319,-500.0,8.219e-05,2]
[407889803,1772898644329,-500.0,8.219e-05,2]
[407889804,1772898644338,-182.13161606,8.219e-05,2]
[407889805,1772898644347,-500.0,8.219e-05,2]
[407889806,1772898644356,-500.0,8.219e-05,2]
[407889807,1772898644367,-500.0,8.219e-05,2]
[407889808,1772898644376,-500.0,8.219e-05,2]
[407889809,1772898644385,-500.0,8.219e-05,2]
[407889810,1772898644394,-500.0,8.219e-05,2]
[407889811,1772898644404,-451.19588011,8.219e-05,2]
[407889812,1772898644413,-500.0,8.219e-05,2]
[407889813,1772898644422,-500.0,8.219e-05,2]
[407889814,1772898644431,-500.0,8.219e-05,2]
[407889815,1772898644441,-500.0,8.219e-05,2]
[407889816,1772898644450,-500.0,8.219e-05,2]
[407889817,1772898644459,-847.0,8.219e-05,2]
[407889818,1772898644469,-150.61485432,8.219e-05,2]
[407889819,1772898644478,-500.0,8.219e-05,2]
[407889820,1772898644488,-500.0,8.219e-05,2]
[407889821,1772898644497,-500.0,8.219e-05,2]
[407889822,1772898644506,-500.0,8.274e-05,2]
[407889823,1772898644516,-500.0,8.274e-05,2]
[407889824,1772898644525,-770.0,8.274e-05,2]
[407889825,1772898644534,-500.0,8.274e-05,2]
[407889826,1772898644544,-500.0,8.274e-05,2]
[407889827,1772898644553,-500.0,8.274e-05,2]
[407889828,1772898644562,-500.0,8.274e-05,2]
[407889829,1772898644572,-500.0,8.274e-05,2]
[407889830,1772898644582,-847.0,8.274e-05,2]
[407889831,1772898644591,-177.7148903,8.274e-05,2]
[407889832,1772898644600,-500.0,8.274e-05,2]
[407889833,1772898644610,-500.0,8.274e-05,2]
[407889834,1772898644619,-500.0,8.329e-05,2]
[407889835,1772898644628,-500.0,8.329e-05,2]
[407889836,1772898644638,-770.0,8.329e-05,2]
[407889837,1772898644647,-500.0,8.329e-05,2]
[407889838,1772898644657,-500.0,8.329e-05,2]
[407889839,1772898644667,-260.43743928,8.329e-05,2]
[407889840,1772898644676,-186.89935515,8.329e-05,2]
[407889841,1772898644685,-488.0639525,8.329e-05,2]
[407889842,1772898644694,-500.0,8.329e-05,2]
[407889843,1772898644704,-593.57887012,8.329e-05,2]
[407889844,1772898644713,-847.0,8.329e-05,2]
[407889845,1772898644724,-254.33049127,8.329e-05,2]
[407889846,1772898644734,-600.56315041,8.329e-05,2]
[407889847,1772898644743,-500.0,8.329e-05,2]
[407889848,1772898644752,-500.0,8.383e-05,2]
[407889849,1772898644762,-500.0,8.383e-05,2]
[407889850,1772898644771,-770.0,8.383e-05,2]
[407889851,1772898644781,-195.8226361,8.383e-05,2]
[407889852,1772898644791,-500.0,8.383e-05,2]
[407889853,1772898644800,-209.41837525,8.383e-05,2]
[407889854,1772898644810,-500.0,8.383e-05,2]
[407889855,1772898644820,-847.0,8.383e-05,2]
[407889856,1772898644830,-500.0,8.383e-05,2]
[407889857,1772898644839,-162.380719,8.396e-05,2]
[407889858,1772898644849,-168.3888056,8.396e-05,2]
[407889859,1772898644859,-174.61919141,8.396e-05,2]
[407889860,1772898644869,-181.08010149,8.396e-05,2]
[407889861,1772898644879,-187.78006525,8.396e-05,2]
[407889862,1772898644895,-194.72792766,8.396e-05,2]
[407889863,1772898644912,-201.93286099,8.396e-05,2]
[407889865,1772898644922,-209.40437684,8.396e-05,2]
[407889866,1772898644932,-217.15233878,8.396e-05,2]
[407889867,1772898644945,-225.18697532,8.396e-05,2]
[407889868,1772898644955,-233.51889341,8.396e-05,2]
[407889869,1772898644964,-242.15909246,8.396e-05,2]
[407889870,1772898644975,-251.11897888,8.396e-05,2]
[407889871,1772898644985,-260.4103811,8.396e-05,2]
[407889872,1772898644995,-270.0455652,8.396e-05,2]
[407889873,1772898645005,-280.03725112,8.396e-05,2]
[407889874,1772898645014,-290.39862941,8.396e-05,2]
[407889875,1772898645023,-301.1433787,8.396e-05,2]
[407889876,1772898645036,-2150.738,8.396e-05,2]
[407889877,1772898645045,-500.0,8.438e-05,2]
[407889878,1772898645055,-500.0,8.438e-05,2]
[407889880,1772898645064,-150.91403361,8.438e-05,2]
[407889881,1772898645075,-153.18259218,8.438e-05,2]
[407889882,1772898645084,-152.21126055,8.438e-05,2]
[407889883,1772898645094,-164.98342202,8.438e-05,2]
[407889884,1772898645104,-500.0,8.438e-05,2]
[407889885,1772898645115,-500.0,8.438e-05,2]
[407889886,1772898645124,-500.0,8.438e-05,2]
[407889887,1772898645134,-770.0,8.438e-05,2]
[407889888,1772898645144,-500.0,8.438e-05,2]
[407889889,1772898645153,-209.36244306,8.438e-05,2]
[407889890,1772898645164,-500.0,8.438e-05,2]
[407889892,1772898645173,-847.0,8.438e-05,2]
[407889894,1772898645183,-170.92045221,8.438e-05,2]
[407889895,1772898645193,-500.0,8.438e-05,2]
[407889896,1772898645202,-500.0,8.493e-05,2]
[407889898,1772898645211,-500.0,8.493e-05,2]
[407889899,1772898645221,-500.0,8.493e-05,2]
[407889901,1772898645230,-608.98534103,8.493e-05,2]
[407889903,1772898645240,-194.5561245,8.493e-05,2]
[407889904,1772898645249,-500.0,8.493e-05,2]
[407889906,1772898645259,-770.0,8.493e-05,2]
[407889907,1772898645269,-500.0,8.493e-05,2]
[407889909,1772898645278,-500.0,8.493e-05,2]
[407889910,1772898645287,-847.0,8.493e-05,2]
[407889911,1772898645297,-500.0,8.493e-05,2]
[407889912,1772898645306,-500.0,8.493e-05,2]
[407889913,1772898645316,-1200.0,8.493e-05,2]
[407889914,1772898645326,-500.0,8.548e-05,2]
[407889915,1772898645335,-349.42052095,8.548e-05,2]
[407889916,1772898645344,-500.0,8.548e-05,2]
[407889917,1772898645354,-500.0,8.548e-05,2]
[407889918,1772898645364,-770.0,8.548e-05,2]
[407889919,1772898645373,-500.0,8.548e-05,2]
[407889920,1772898645383,-500.0,8.548e-05,2]
[407889921,1772898645392,-847.0,8.548e-05,2]
[407889922,1772898645402,-500.0,8.548e-05,2]
[407889923,1772898645412,-500.0,8.602e-05,2]
[407889924,1772898645421,-500.0,8.602e-05,2]
[407889925,1772898645431,-500.0,8.603e-05,2]
[407889926,1772898645441,-770.0,8.603e-05,2]
[407889927,1772898645451,-500.0,8.603e-05,2]
[407889928,1772898645462,-500.0,8.603e-05,2]
[407889929,1772898645472,-847.0,8.603e-05,2]
[407889930,1772898645481,-500.0,8.603e-05,2]
[407889931,1772898645491,-500.0,8.657e-05,2]
[407889932,1772898645500,-276.99985371,8.657e-05,2]
[407889933,1772898645510,-500.0,8.657e-05,2]
[407889934,1772898645519,-500.0,8.657e-05,2]
[407889935,1772898645528,-770.0,8.657e-05,2]
[407889936,1772898645538,-453.60438823,8.657e-05,2]
[407889937,1772898645547,-500.0,8.657e-05,2]
[407889938,1772898645557,-847.0,8.657e-05,2]
[407889939,1772898645566,-404.1539436,8.657e-05,2]
[407889940,1772898645576,-500.0,8.712e-05,2]
[407889941,1772898645585,-500.0,8.712e-05,2]
[407889942,1772898645595,-290.28080104,8.712e-05,2]
[407889943,1772898645604,-500.0,8.712e-05,2]
[407889944,1772898645614,-770.0,8.712e-05,2]
[407889945,1772898645623,-194.4881367,8.712e-05,2]
[407889946,1772898645633,-369.0,8.712e-05,2]
[407889947,1772898645643,-847.0,8.712e-05,2]
[407889948,1772898645652,-11324.76819277,8.712e-05,2]
[407889949,1772898645661,-442.22310993,8.767e-05,2]
[407889950,1772898645672,-500.0,8.767e-05,2]
[407889951,1772898645681,-500.0,8.767e-05,2]
[407889952,1772898645691,-770.0,8.767e-05,2]
[407889953,1772898645701,-847.0,8.767e-05,2]
[407889954,1772898645710,-500.0,8.767e-05,2]
[407889955,1772898645720,-500.0,8.822e-05,2]
[407889956,1772898645730,-500.0,8.822e-05,2]
[407889957,1772898645740,-433.25492693,8.822e-05,2]
[407889958,1772898645749,-770.0,8.822e-05,2]
[407889959,1772898645759,-847.0,8.822e-05,2]
[407889960,1772898645768,-1887.47803213,8.857e-05,30]
[407889961,1772898645778,-500.0,8.876e-05,2]
[407889962,1772898645787,-500.0,8.877e-05,2]
[407889963,1772898645798,-770.0,8.877e-05,2]
[407889964,1772898645808,-847.0,8.877e-05,2]
[407889965,1772898645819,-509.10868115,8.904e-05,2]
[407889966,1772898645829,-206.84316518,8.931e-05,2]
[407889967,1772898645839,-500.0,8.931e-05,2]
[407889968,1772898645849,-770.0,8.931e-05,2]
[407889969,1772898645859,-847.0,8.931e-05,2]
[407889970,1772898645868,-2230.315306,8.944e-05,2]
[407889971,1772898645878,-1000.0,8.962e-05,2]
[407889972,1772898645887,-1000.0,8.962e-05,2]
[407889973,1772898645898,-579.0,8.962e-05,2]
[407889974,1772898645908,-500.0,8.986e-05,2]
[407889975,1772898645918,-770.0,8.986e-05,2]
[407889976,1772898645928,-847.0,8.986e-05,2]
[407889977,1772898645938,-1004.0,8.99e-05,2]
[407889978,1772898645947,-1887.47803213,9.001e-05,30]
[407889979,1772898645957,-378.23296899,9.041e-05,2]
[407889980,1772898645966,-500.0,9.041e-05,2]
[407889981,1772898645976,-770.0,9.041e-05,2]
[407889982,1772898645986,-847.0,9.041e-05,2]
[407889985,1772898645996,-500.0,9.041e-05,2]
[407889987,1772898646006,-1500.0,9.041e-05,2]
[407889988,1772898646015,-500.0,9.096e-05,2]
[407889989,1772898646024,-770.0,9.096e-05,2]
[407889990,1772898646036,-847.0,9.096e-05,2]
[407889991,1772898646046,-9772.46744147,9.11e-05,2]
[407889992,1772898646056,-5000.0,9.11e-05,2]
[407889993,1772898646066,-5000.0,9.11e-05,2]
[407889994,1772898646077,-5000.0,9.11e-05,2]
[407889995,1772898646087,-5000.0,9.11e-05,2]
[407889996,1772898646097,-5000.0,9.11e-05,2]
[407889997,1772898646108,-1887.47803213,9.145e-05,30]
[407889998,1772898646117,-494.65768222,9.151e-05,2]
[407889999,1772898646127,-770.0,9.151e-05,2]
[407890000,1772898646136,-847.0,9.151e-05,2]
[407890001,1772898646145,-770.0,9.205e-05,2]
[407890002,1772898646154,-847.0,9.205e-05,2]
[407890003,1772898646164,-770.0,9.26e-05,2]
[407890004,1772898646173,-847.0,9.26e-05,2]
[407890010,1772898646282,-1887.47803213,9.29e-05,30]
[407890012,1772898646292,-770.0,9.315e-05,2]
[407890014,1772898646301,-847.0,9.315e-05,2]
[407890015,1772898646313,-500.0,9.315e-05,2]
[407890016,1772898646324,-13894.28553932,9.35e-05,3]
[407890017,1772898646333,-770.0,9.37e-05,2]
[407890018,1772898646343,-847.0,9.37e-05,2]
[407890019,1772898646354,-770.0,9.424e-05,2]
[407890020,1772898646365,-847.0,9.424e-05,2]
[407890021,1772898646375,-1887.47803213,9.434e-05,30]
[407890022,1772898646384,-244.6353159,9.479e-05,2]
[407890023,1772898646394,-770.0,9.479e-05,2]
[407890024,1772898646403,-852.02582974,9.479e-05,2]
[407890025,1772898646413,-2312.83697232,9.492e-05,2]
[407890026,1772898646422,-99999.9999,9.5e-05,2]
[407890027,1772898646430,-365.12733716,9.5e-05,2]
[407890028,1772898646439,-163.90566165,9.5e-05,2]
[407890029,1772898646449,-1887.47803213,9.578e-05,30]
[407890030,1772898646458,-38000.0,9.58e-05,2]
[407890031,1772898646467,-38000.0,9.589e-05,2]
[407890032,1772898646478,-500.0,9.589e-05,2]
[407890033,1772898646488,-1800.0,9.589e-05,2]
[407890034,1772898646497,-17217.04718138,9.598e-05,2]
[407890035,1772898646506,-1887.47803213,9.723e-05,30]
[407890036,1772898646515,-27753.79544792,9.747e-05,2]
[407890037,1772898646524,-1000.0,9.859e-05,2]
[407890038,1772898646534,-310.0,9.859e-05,2]
[407890039,1772898646542,-500.0,9.863e-05,2]
[407890040,1772898646551,-1887.47803213,9.867e-05,30]
[407890041,1772898646560,-1004.0,9.99e-05,2]
[407890042,1772898646570,-2827.96287422,0.0001,2]
[407890043,1772898646580,-10634.66319641,0.0001,2]
[407890044,1772898646589,-12407.10706248,0.0001,7]
[407890045,1772898646599,-12407.10706248,0.0001,2]
[407890046,1772898646608,-3548.43261988,0.0001,2]
[407890047,1772898646619,-351.64967263,0.0001,2]
[407890048,1772898646630,-151.0,0.0001,2]
[407890049,1772898646639,-151.0,0.0001,2]
[407890050,1772898646648,-151.0,0.0001,2]
[407890051,1772898646657,-151.0,0.0001,2]
[407890052,1772898646666,-151.0,0.0001,2]
[407890053,1772898646675,-151.0,0.0001,2]
[407890054,1772898646684,-151.0,0.0001,2]
[407890055,1772898646693,-151.0,0.0001,2]
[407890056,1772898646702,-151.0,0.0001,2]
[407890057,1772898646711,-180.0,0.0001,2]
[407890058,1772898646722,-151.0,0.0001,2]
[407890059,1772898646732,-151.0,0.0001,2]
[407890060,1772898646741,-151.0,0.0001,2]
[407890061,1772898646750,-151.0,0.0001,2]
[407890062,1772898646759,-151.0,0.0001,2]
[407890063,1772898646769,-151.0,0.0001,2]
[407890064,1772898646779,-151.0,0.0001,2]
[407890065,1772898646790,-151.0,0.0001,2]
[407890066,1772898646801,-151.0,0.0001,2]
[407890067,1772898646811,-151.0,0.0001,2]
[407890068,1772898646821,-151.0,0.0001,2]
[407890069,1772898646831,-1887.47803213,0.00010012,30]
[407890070,1772898646840,-2398.4119403,0.0001004,2]
[407890071,1772898646850,-151.0,0.00010062,2]
[407890072,1772898646860,-528.516071,0.00010062,2]
[407890073,1772898646870,-528.516071,0.00010062,2]
[407890074,1772898646881,-528.516071,0.00010062,2]
[407890075,1772898646890,-528.516071,0.00010062,2]
[407890076,1772898646899,-151.0,0.00010062,2]
[407890077,1772898646909,-151.0,0.00010062,2]
[407890078,1772898646920,-151.0,0.00010062,2]
[407890079,1772898646930,-151.0,0.00010062,2]
[407890080,1772898646939,-151.0,0.00010062,2]
[407890081,1772898646950,-151.0,0.00010062,2]
[407890082,1772898646961,-151.0,0.00010062,2]
[407890083,1772898646971,-228.9529,0.00010062,2]
[407890084,1772898646983,-151.0,0.00010062,2]
[407890085,1772898646992,-178.491293,0.00010062,2]
[407890086,1772898647002,-151.0,0.00010062,2]
[407890087,1772898647012,-178.491293,0.00010062,2]
[407890088,1772898647022,-151.0,0.00010062,2]
[407890089,1772898647035,-178.491293,0.00010062,2]
[407890090,1772898647046,-178.491293,0.00010062,2]
[407890091,1772898647056,-151.0,0.00010062,2]
[407890092,1772898647065,-522.578738,0.00010062,2]
[407890093,1772898647075,-522.578738,0.00010062,2]
[407890094,1772898647085,-522.578738,0.00010062,2]
[407890095,1772898647094,-522.578738,0.00010062,2]
[407890096,1772898647104,-151.0,0.00010062,2]
[407890097,1772898647115,-151.0,0.00010062,2]
[407890098,1772898647124,-3459.538781,0.00010062,2]
[407890099,1772898647133,-6046.748915,0.00010062,2]
[407890100,1772898647143,-151.0,0.00010062,2]
[407890101,1772898647152,-3459.538781,0.00010062,2]
[407890102,1772898647162,-6046.748915,0.00010062,2]
[407890103,1772898647173,-3459.538781,0.00010062,2]
[407890104,1772898647183,-3459.538781,0.00010062,2]
[407890105,1772898647192,-6046.748915,0.00010062,2]
[407890106,1772898647201,-6046.748915,0.00010062,2]
[407890107,1772898647210,-210.843553,0.00010062,2]
[407890108,1772898647220,-210.843553,0.00010062,2]
[407890109,1772898647230,-210.843553,0.00010062,2]
[407890110,1772898647240,-1578.603062,0.00010062,2]
[407890111,1772898647250,-210.843553,0.00010062,2]
[407890112,1772898647260,-1578.603062,0.00010062,2]
[407890113,1772898647271,-1578.603062,0.00010062,2]
[407890114,1772898647280,-1578.603062,0.00010062,2]
[407890115,1772898647289,-366.915584,0.00010062,2]
[407890116,1772898647299,-366.915584,0.00010062,2]
[407890117,1772898647308,-366.915584,0.00010062,2]
[407890118,1772898647317,-366.915584,0.00010062,2]
[407890119,1772898647326,-626.589058,0.00010062,2]
[407890120,1772898647336,-626.589058,0.00010062,2]
[407890121,1772898647345,-626.589058,0.00010062,2]
[407890122,1772898647354,-626.589058,0.00010062,2]
[407890123,1772898647363,-151.0,0.00010062,2]
[407890124,1772898647372,-151.0,0.00010062,2]
[407890125,1772898647381,-151.0,0.00010062,2]
[407890126,1772898647392,-151.0,0.00010062,2]
[407890127,1772898647401,-151.0,0.00010062,2]
[407890128,1772898647410,-3169.546549,0.00010062,2]
[407890129,1772898647419,-1064.513193,0.00010062,2]
[407890130,1772898647429,-151.0,0.00010062,2]
[407890131,1772898647438,-170.470231,0.00010062,2]
[407890132,1772898647447,-3169.546549,0.00010062,2]
[407890133,1772898647456,-1064.513193,0.00010062,2]
[407890134,1772898647465,-1064.513193,0.00010062,2]
[407890135,1772898647474,-3169.546549,0.00010062,2]
[407890136,1772898647483,-151.0,0.00010062,2]
[407890137,1772898647492,-1064.513193,0.00010062,2]
[407890138,1772898647501,-1194.508671,0.00010062,2]
[407890139,1772898647510,-3169.546549,0.00010062,2]
[407890140,1772898647520,-151.0,0.00010062,2]
[407890141,1772898647529,-151.0,0.00010062,2]
[407890142,1772898647538,-1194.508671,0.00010062,2]
[407890143,1772898647547,-151.0,0.00010062,2]
[407890144,1772898647556,-1194.508671,0.00010062,2]
[407890145,1772898647565,-1194.508671,0.00010062,2]
[407890146,1772898647574,-287.88348,0.00010062,2]
[407890147,1772898647584,-151.0,0.00010062,2]
[407890148,1772898647593,-996.721241,0.00010062,2]
[407890149,1772898647602,-287.88348,0.00010062,2]
[407890150,1772898647612,-151.0,0.00010062,2]
[407890151,1772898647621,-996.721241,0.00010062,2]
[407890152,1772898647630,-287.88348,0.00010062,2]
[407890153,1772898647639,-494.999774,0.00010062,2]
[407890154,1772898647648,-996.721241,0.00010062,2]
[407890155,1772898647658,-287.88348,0.00010062,2]
[407890156,1772898647667,-494.999774,0.00010062,2]
[407890157,1772898647676,-996.721241,0.00010062,2]
[407890158,1772898647685,-494.999774,0.00010062,2]
[407890159,1772898647695,-494.999774,0.00010062,2]
[407890160,1772898647704,-326.041498,0.00010062,2]
[407890161,1772898647713,-326.041498,0.00010062,2]
[407890162,1772898647722,-151.0,0.00010062,2]
[407890163,1772898647731,-326.041498,0.00010062,2]
[407890164,1772898647740,-151.0,0.00010062,2]
[407890165,1772898647750,-326.041498,0.00010062,2]
[407890166,1772898647759,-161.588002,0.00010062,2]
[407890167,1772898647768,-151.0,0.00010062,2]
[407890168,1772898647777,-161.588002,0.00010062,2]
[407890169,1772898647786,-157.267671,0.00010062,2]
[407890170,1772898647795,-151.0,0.00010062,2]
[407890171,1772898647803,-161.588002,0.00010062,2]
[407890172,1772898647813,-157.267671,0.00010062,2]
[407890173,1772898647822,-157.267671,0.00010062,2]
[407890174,1772898647831,-157.267671,0.00010062,2]
[407890175,1772898647840,-161.588002,0.00010062,2]
[407890176,1772898647850,-151.0,0.00010062,2]
[407890177,1772898647860,-151.0,0.00010062,2]
[407890178,1772898647870,-50266.25181615,0.00010062,2]
[407890179,1772898647879,-173.17,0.00010086,2]
[407890180,1772898647888,-165.47801739,0.00010135,2]
[407890181,1772898647898,-500.0,0.00010137,2]
[407890182,1772898647907,-300.0,0.00010137,2]
[407890183,1772898647918,-2100.0,0.00010137,2]
[407890184,1772898647927,-151.0,0.00010137,2]
[407890185,1772898647936,-151.0,0.00010137,2]
[407890186,1772898647945,-151.0,0.00010137,2]
[407890187,1772898647955,-184.148645,0.00010137,2]
[407890188,1772898647965,-184.148645,0.00010137,2]
[407890189,1772898647975,-184.148645,0.00010137,2]
[407890190,1772898647984,-151.0,0.00010137,2]
[407890191,1772898647993,-184.148645,0.00010137,2]
[407890192,1772898648002,-579.614454,0.00010137,2]
[407890193,1772898648011,-394.331399,0.00010137,2]
[407890194,1772898648020,-394.331399,0.00010137,2]
[407890195,1772898648031,-394.331399,0.00010137,2]
[407890196,1772898648043,-394.331399,0.00010137,2]
[407890197,1772898648052,-579.614454,0.00010137,2]
[407890198,1772898648062,-579.614454,0.00010137,2]
[407890199,1772898648070,-579.614454,0.00010137,2]
[407890200,1772898648081,-466.313128,0.00010137,2]
[407890201,1772898648090,-466.313128,0.00010137,2]
[407890202,1772898648099,-466.313128,0.00010137,2]
[407890203,1772898648110,-466.313128,0.00010137,2]
[407890204,1772898648120,-448.620497,0.00010137,2]
[407890205,1772898648130,-448.620497,0.00010137,2]
[407890206,1772898648139,-448.620497,0.00010137,2]
[407890207,1772898648148,-448.620497,0.00010137,2]
[407890208,1772898648157,-151.211796,0.00010137,2]
[407890209,1772898648166,-151.211796,0.00010137,2]
[407890210,1772898648175,-151.211796,0.00010137,2]
[407890211,1772898648184,-151.211796,0.00010137,2]
[407890212,1772898648193,-4086.000975,0.00010137,2]
[407890213,1772898648203,-151.0,0.00010137,2]
[407890214,1772898648212,-4086.000975,0.00010137,2]
[407890215,1772898648222,-151.0,0.00010137,2]
[407890216,1772898648231,-4086.000975,0.00010137,2]
[407890217,1772898648241,-151.0,0.00010137,2]
[407890218,1772898648250,-4086.000975,0.00010137,2]
[407890219,1772898648259,-151.0,0.00010137,2]
[407890220,1772898648268,-151.0,0.00010137,2]
[407890221,1772898648278,-151.0,0.00010137,2]
[407890222,1772898648287,-151.0,0.00010137,2]
[407890223,1772898648296,-151.0,0.00010137,2]
[407890224,1772898648306,-151.0,0.00010137,2]
[407890225,1772898648316,-1249.22505,0.00010137,2]
[407890226,1772898648326,-1249.22505,0.00010137,2]
[407890227,1772898648335,-1249.22505,0.00010137,2]
[407890228,1772898648344,-1249.22505,0.00010137,2]
[407890229,1772898648352,-151.0,0.00010137,2]
[407890230,1772898648362,-7079.987139,0.00010137,2]
[407890231,1772898648371,-158.327582,0.00010137,2]
[407890232,1772898648380,-7079.987139,0.00010137,2]
[407890233,1772898648389,-569.700984,0.00010137,2]
[407890234,1772898648398,-7079.987139,0.00010137,2]
[407890235,1772898648407,-569.700984,0.00010137,2]
[407890236,1772898648416,-7079.987139,0.00010137,2]
[407890237,1772898648425,-569.700984,0.00010137,2]
[407890238,1772898648435,-569.700984,0.00010137,2]